bitfinex/quotes_SOLUSD_20250616
["timestamp","ask_amount","ask_price","bid_price","bid_amount"]
[1750094381946,7.73570849,157.93,157.89,7.59354692]
[1750094382158,7.73570849,157.93,157.89,96.39354692]
[1750094382331,0.14216157,157.93,157.89,96.39354692]
[1750094383339,0.14216157,157.93,157.89,102.72679639]
[1750094383542,33.59354692,157.94,157.9,18.64964886]
[1750094384269,26.0,157.94,157.9,26.24319578]
[1750094385346,33.59354692,157.94,157.9,26.24319578]
[1750094386067,7.59354692,157.93,157.9,18.64964886]
[1750094386469,7.59354692,157.91,157.87,6.33419967]
[1750094386671,7.59354692,157.91,157.88,18.64964886]
[1750094388276,7.59354692,157.91,157.88,24.98344984]
[1750094388775,7.73570849,157.92,157.88,24.98344984]
[1750094390148,14.0680446,157.92,157.88,18.64964886]
[1750094390869,7.59354692,157.92,157.88,32.57706784]
[1750094391069,7.73570849,157.93,157.88,32.57706784]
[1750094391285,27.5452,157.94,157.88,24.98352092]
[1750094391461,27.5452,157.94,157.89,7.59354692]
[1750094391462,7.59354692,157.93,157.89,7.59354692]
[1750094391849,4.72051632,157.95,157.92,18.64964886]
[1750094392051,2.36084428,157.97,157.94,18.64964886]
[1750094392347,50.2,158.01,157.94,18.64964886]
[1750094392348,1.5643,158.02,157.96,7.59354692]
[1750094392550,1.5643,158.02,157.97,26.24319578]
[1750094392551,9.95122136,158.01,157.97,26.24319578]
[1750094392775,2.35767444,158.01,157.97,26.24319578]
[1750094392954,9.95122136,158.01,157.97,18.64964886]
[1750094393155,2.35767444,158.01,157.97,18.64964886]
[1750094393362,2.35767444,158.01,157.97,26.24319578]
[1750094393363,7.59354692,158.01,157.97,26.24319578]
[1750094393753,7.59354692,158.01,157.97,18.64964886]
[1750094394182,7.59354692,157.99,157.96,88.8]
[1750094394352,7.59354692,157.98,157.96,88.8]
[1750094394558,7.59354692,157.97,157.93,88.8]
[1750094394858,38.59493063,158.0,157.93,88.8]
[1750094394859,7.59354692,157.95,157.93,88.8]
[1750094395059,7.59354692,157.95,157.91,18.64964886]
[1750094395060,7.59354692,157.95,157.91,107.44964886]
[1750094395255,7.59354692,157.94,157.91,88.8]
[1750094395458,7.59354692,157.92,157.89,88.8]
[1750094396167,6.47423131,157.93,157.89,88.8]
[1750094396354,7.59354692,157.92,157.89,88.8]
[1750094397853,7.59354692,157.92,157.89,95.13344405]
[1750094398388,7.59354692,157.92,157.89,95.13351194]
[1750094398757,12.70738309,157.95,157.9,18.64964886]
[1750094398961,7.59354692,157.94,157.9,18.64964886]
[1750094399370,7.59354692,157.94,157.9,107.44964886]
[1750094400284,7.59354692,157.95,157.91,13.92626809]
[1750094400584,7.59354692,157.94,157.91,6.33272117]
[1750094401367,38.03072233,157.96,157.91,6.33272117]
[1750094401563,7.59354692,157.94,157.91,6.33272117]
[1750094402279,39.29354692,157.96,157.91,13.92626809]
[1750094402460,5.7,157.96,157.92,26.24319578]
[1750094402777,13.29354692,157.96,157.92,18.64964886]
[1750094403373,26.0,157.98,157.92,18.64964886]
[1750094403695,7.59354692,157.97,157.94,18.64964886]
[1750094403989,4.72530609,157.98,157.94,18.64964886]
[1750094404171,4.72530609,157.98,157.94,24.98113365]
[1750094404172,7.59354692,157.98,157.94,24.98113365]
[1750094405068,7.59354692,157.95,157.91,88.8]
[1750094405270,7.59354692,157.95,157.92,18.64964886]
[1750094407058,5.00820181,157.98,157.92,163.20623966]
[1750094407059,4.72387867,157.98,157.92,163.20623966]
[1750094407258,5.7,158.01,157.98,18.64964886]
[1750094407482,5.7,158.01,157.98,107.44964886]
[1750094408264,8.06124997,158.01,157.98,107.44964886]
[1750094408600,5.7,158.01,157.98,107.44964886]
[1750094409403,13.29354692,158.01,157.98,107.44964886]
[1750094410671,5.7,158.01,157.98,121.37304492]
[1750094411798,5.7,158.01,157.98,113.779498]
[1750094412274,5.7,158.01,157.98,121.37304492]
[1750094412682,7.08566156,158.02,157.98,121.37304492]
[1750094412877,4.72441159,158.03,158.0,7.59354692]
[1750094413095,4.72441159,158.03,157.98,113.779498]
[1750094413096,26.59489649,158.04,157.99,26.24319578]
[1750094413492,9.95484626,158.03,157.99,18.64964886]
[1750094413793,7.59354692,158.02,157.99,18.64964886]
[1750094414300,7.59354692,158.01,157.98,88.8]
[1750094414875,2.36191775,158.02,157.99,18.64964886]
[1750094415374,9.95546467,158.03,157.99,18.64964886]
[1750094416094,9.95546467,158.03,157.99,24.97899293]
[1750094416902,9.95546467,158.03,157.99,32.57253985]
[1750094417192,24.98693185,158.04,158.0,7.59354692]
[1750094417514,17.39338493,158.04,158.01,18.64964886]
[1750094417805,14.67445933,158.04,158.01,18.64964886]
[1750094418004,16.28305842,158.04,158.01,18.64964886]
[1750094418173,7.59354692,158.02,158.0,88.8]
[1750094418902,7.59354692,158.03,158.0,88.8]
[1750094419068,7.59354692,158.01,158.0,88.8]
[1750094420875,13.92226029,158.01,158.0,88.8]
[1750094421073,7.59354692,158.01,158.0,88.8]
[1750094421274,2.36030937,158.03,158.01,18.64964886]
[1750094421492,2.36030937,158.05,158.01,18.64964886]
[1750094421794,9.95385629,158.05,158.01,107.44964886]
[1750094422102,2.36030937,158.05,158.01,107.44964886]
[1750094422272,9.95385629,158.05,158.01,113.77798654]
[1750094422672,10.81778884,158.17,158.08,26.0]
[1750094422913,2.35778716,158.16,158.09,52.30319578]
[1750094423089,2.35778716,158.17,158.09,52.30319578]
[1750094423275,2.35778716,158.17,158.09,58.75179578]
[1750094423476,7.59354692,158.17,158.09,58.75179578]
[1750094424171,1.6353,158.19,158.09,65.07730656]
[1750094424487,7.59354692,158.17,158.09,65.07730656]
[1750094424796,9.22884692,158.19,158.09,75.07730656]
[1750094424976,9.22884692,158.19,158.09,65.07730656]
[1750094425301,9.22884692,158.19,158.09,70.73730656]
[1750094426187,7.59354692,158.17,158.09,65.21730656]
[1750094426803,11.34226994,158.17,158.09,68.96602958]
[1750094427796,11.34226994,158.16,158.09,62.31742958]
[1750094428015,17.66500447,158.16,158.09,50.97515964]
[1750094428192,11.34226994,158.14,158.09,62.31742958]
[1750094428394,11.34226994,158.15,158.09,62.31742958]
[1750094428606,0.14216157,158.16,158.09,62.31742958]
[1750094428811,11.34226994,158.15,158.09,62.31742958]
[1750094429310,49.54226994,158.15,158.09,62.31742958]
[1750094429479,11.34226994,158.15,158.09,62.31742958]
[1750094430413,11.34226994,158.13,158.09,50.97515964]
[1750094430717,11.34226994,158.13,158.09,62.31742958]
[1750094430882,6.60717477,158.16,158.09,62.31742958]
[1750094430883,11.34226994,158.15,158.09,62.31742958]
[1750094431088,0.28432314,158.16,158.09,62.31742958]
[1750094431486,11.34226994,158.15,158.09,62.31742958]
[1750094432985,6.60705529,158.16,158.04,17.00226994]
[1750094432986,27.6638,158.11,158.04,6.32736591]
[1750094433191,11.34226994,158.07,158.03,95.12782539]
[1750094433390,11.34226994,158.07,158.04,18.64964886]
[1750094433588,7.62909051,158.1,158.04,18.64964886]
[1750094433589,11.34226994,158.08,158.04,18.64964886]
[1750094434601,11.34226994,158.08,158.04,24.97700049]
[1750094436426,11.34226994,158.08,158.04,36.31927043]
[1750094437020,11.34226994,158.09,158.04,36.31927043]
[1750094437307,11.34226994,158.09,158.04,24.97700049]
[1750094437612,11.34226994,158.09,158.04,36.31927043]
[1750094438909,11.34226994,158.09,158.06,18.64964886]
[1750094439406,7.62920497,158.1,158.06,18.64964886]
[1750094439610,11.34226994,158.09,158.06,18.64964886]
[1750094440483,1.3039624,158.1,158.07,18.64964886]
[1750094440820,1.3039624,158.1,158.07,107.44964886]
[1750094441109,1.3039624,158.1,158.09,29.9919188]
[1750094441293,1.3039624,158.1,158.09,118.7919188]
[1750094442415,1.3039624,158.1,158.09,125.11742958]
[1750094443311,1.3039624,158.1,158.09,107.44964886]
[1750094443517,1.3039624,158.1,158.09,113.77515964]
[1750094443698,1.3039624,158.1,158.09,107.44964886]
[1750094444031,1.3039624,158.1,158.09,88.8]
[1750094445290,1.3039624,158.1,158.09,107.44964886]
[1750094446702,1.3039624,158.1,158.09,18.64964886]
[1750094447323,1.3039624,158.1,158.08,18.64964886]
[1750094447693,12.64623234,158.1,158.08,18.64964886]
[1750094448430,7.86759715,158.08,158.05,88.8]
[1750094448592,11.34226994,158.06,158.05,88.8]
[1750094450707,17.81114288,158.06,158.02,88.8]
[1750094450906,11.34226994,158.04,158.02,88.8]
[1750094451221,11.34226994,158.03,158.02,88.8]
[1750094451391,0.14216157,158.02,157.99,180.58794718]
[1750094451734,11.34226994,158.0,157.96,88.8]
[1750094451892,11.34226994,158.0,157.97,18.64964886]
[1750094452488,11.34226994,158.01,157.97,36.32221814]
[1750094452687,11.34226994,158.02,157.97,125.12221814]
[1750094454292,11.34226994,158.01,157.97,125.12221814]
[1750094459701,11.34226994,158.01,157.97,113.7799482]
[1750094460117,0.14216157,158.03,157.97,24.9799482]
[1750094460322,11.34226994,158.0,157.97,24.9799482]
[1750094460711,11.34226994,158.0,157.97,18.64964886]
[1750094461041,7.57793663,157.98,157.95,18.64964886]
[1750094461238,7.57793663,157.96,157.95,18.64964886]
[1750094462349,7.57793663,157.96,157.93,18.64964886]
[1750094462634,0.14216157,157.98,157.93,18.64964886]
[1750094462819,11.37159789,157.96,157.93,18.64964886]
[1750094463846,11.37159789,157.96,157.93,24.98144971]
[1750094466232,12.15,158.0,157.93,40.81124772]
[1750094466442,44.3464,158.04,157.98,11.37159789]
[1750094466643,11.37159789,158.03,157.99,11.37159789]
[1750094466827,11.37159789,158.03,157.99,100.17159789]
[1750094467214,18.61779789,158.05,158.0,30.02124675]
[1750094467616,24.94491036,158.05,158.0,30.02124675]
[1750094467831,11.51375946,158.03,157.99,88.8]
[1750094468238,0.14216157,158.03,157.99,106.50110166]
[1750094468540,11.37159789,158.04,158.0,18.64964886]
[1750094468845,13.57335435,158.05,158.0,18.64964886]
[1750094469221,7.2462,158.05,158.0,18.64964886]
[1750094469432,11.37159789,158.04,158.0,18.64964886]
[1750094469635,18.61779789,158.05,158.0,30.02124675]
[1750094469948,11.37159789,158.03,157.99,95.12950377]
[1750094470322,11.37159789,158.03,157.99,88.8]
[1750094471052,0.14216157,158.04,157.99,88.8]
[1750094471235,11.37159789,158.02,157.99,88.8]
[1750094472244,3.30152487,158.03,157.99,95.12948465]
[1750094472245,14.67312276,158.03,157.99,95.12948465]
[1750094473631,14.67312276,158.03,157.99,106.50108254]
[1750094474528,14.67312276,158.03,157.99,88.8]
[1750094477227,14.67312276,158.03,157.99,95.12946318]
[1750094477427,11.37159789,158.02,157.99,95.12946318]
[1750094477641,14.67312276,158.03,157.99,106.50106107]
[1750094478242,0.12739313,158.0,157.99,125.15070993]
[1750094478642,0.12739313,158.0,157.99,113.77911204]
[1750094480137,0.12739313,158.0,157.99,107.44964886]
[1750094484509,0.12739313,158.0,157.99,113.77916338]
[1750094484679,0.12739313,158.0,157.99,107.44964886]
[1750094484874,7.70269489,158.0,157.95,88.8]
[1750094485189,7.70269489,158.0,157.91,1.6243]
[1750094485190,7.57530176,157.96,157.92,6.33206314]
[1750094485500,7.57530176,157.96,157.93,18.64964886]
[1750094485975,7.57530176,157.96,157.93,24.98137756]
[1750094486805,9.23560176,157.98,157.93,32.55667932]
[1750094487011,7.57530176,157.98,157.95,18.64964886]
[1750094488584,7.57530176,157.98,157.95,24.9806888]
[1750094491196,7.57530176,157.98,157.95,113.7806888]
[1750094493176,7.57530176,157.97,157.95,107.44964886]
[1750094493375,7.57530176,157.97,157.95,88.8]
[1750094493600,7.57530176,157.96,157.95,88.8]
[1750094494198,7.57530176,157.97,157.95,88.8]
[1750094494696,3.30213114,157.99,157.95,95.13111114]
[1750094494901,7.57530176,157.98,157.95,95.13111114]
[1750094495898,7.57530176,157.96,157.95,88.8]
[1750094496798,7.57530176,157.97,157.95,88.8]
[1750094497310,7.71746333,157.98,157.95,88.8]
[1750094498188,0.11595724,157.96,157.95,88.8]
[1750094499802,0.11595724,157.96,157.95,107.44964886]
[1750094500194,0.11595724,157.96,157.95,113.7807663]
[1750094501809,0.11595724,157.96,157.95,107.44964886]
[1750094502315,0.11595724,157.96,157.95,113.7807663]
[1750094506528,0.11595724,157.96,157.95,107.44964886]
[1750094506919,7.691259,157.96,157.95,88.8]
[1750094508010,0.11595724,157.96,157.93,18.64964886]
[1750094508320,7.57530176,157.95,157.93,18.64964886]
[1750094509200,7.691259,157.96,157.93,18.64964886]
[1750094509918,0.11595724,157.96,157.93,18.64964886]
[1750094510220,7.691259,157.96,157.93,18.64964886]
[1750094510432,7.691259,157.96,157.93,24.98156332]
[1750094510636,0.11595724,157.96,157.93,24.98156332]
[1750094511636,0.08531012,157.97,157.95,18.64964886]
[1750094511825,0.08531012,157.97,157.95,107.44964886]
[1750094514633,0.08531012,157.97,157.95,113.78073652]
[1750094515333,0.08531012,157.97,157.96,26.22495062]
[1750094515545,0.08531012,157.97,157.96,115.02495062]
[1750094516509,0.08531012,157.97,157.96,121.35566725]
[1750094518223,0.12014141,157.97,157.96,121.35566725]
[1750094521236,0.12014141,157.97,157.96,113.78036549]
[1750094521450,0.12014141,157.97,157.93,114.8]
[1750094521634,14.02579694,157.97,157.93,88.8]
[1750094521840,7.57530176,157.96,157.93,88.8]
[1750094522318,7.57530176,157.96,157.93,18.64964886]
[1750094524223,11.18057774,157.97,157.93,18.64964886]
[1750094524419,7.57530176,157.96,157.93,18.64964886]
[1750094525319,12.42552573,157.97,157.93,32.5567356]
[1750094525749,7.69544317,157.97,157.93,32.5567356]
[1750094526233,7.69544317,157.97,157.93,24.98143384]
[1750094526429,4.85593006,157.97,157.93,32.5567356]
[1750094526631,4.85593006,157.97,157.94,7.57530176]
[1750094527424,4.85593006,157.97,157.93,113.78143384]
[1750094527752,4.85593006,157.97,157.94,7.57530176]
[1750094528151,4.85593006,157.97,157.93,113.78143384]
[1750094528323,4.85593006,157.97,157.94,7.57530176]
[1750094528526,0.12014141,157.97,157.94,7.57530176]
[1750094528725,4.85830266,157.97,157.94,7.57530176]
[1750094529051,4.85830266,157.97,157.93,113.78143384]
[1750094529238,4.85830266,157.97,157.94,7.57530176]
[1750094529751,0.12014141,157.97,157.94,13.90678345]
[1750094530253,0.12014141,157.97,157.93,121.35671192]
[1750094530847,4.73974,157.96,157.93,121.35671192]
[1750094531143,0.12014141,157.97,157.93,121.35671192]
[1750094532236,4.73975894,157.96,157.93,121.35671192]
[1750094532446,0.12014141,157.97,157.93,121.35671192]
[1750094534966,0.12014141,157.97,157.96,26.22495062]
[1750094537355,7.69544317,157.97,157.94,18.64964886]
[1750094538169,7.57530176,157.97,157.94,18.64964886]
[1750094538375,7.57530176,157.97,157.94,107.44964886]
[1750094538742,4.73931308,157.96,157.94,107.44964886]
[1750094538954,7.57530176,157.97,157.94,107.44964886]
[1750094539154,4.73933706,157.96,157.94,113.78111386]
[1750094539341,7.57530176,157.98,157.94,121.35641562]
[1750094539559,4.73928085,157.97,157.94,121.35641562]
[1750094539746,14.33143064,157.99,157.94,121.35641562]
[1750094540073,4.73897351,157.98,157.94,121.35641562]
[1750094540361,4.73897351,157.97,157.94,121.35641562]
[1750094540577,14.33143064,157.99,157.94,121.35641562]
[1750094540868,4.73889836,157.98,157.94,121.35641562]
[1750094541042,4.73889836,157.97,157.94,121.35641562]
[1750094541242,14.33143064,157.99,157.94,121.35641562]
[1750094541439,4.7389069,157.98,157.94,121.35641562]
[1750094541643,4.7389069,157.97,157.94,121.35641562]
[1750094541872,14.33143064,157.99,157.94,121.35641562]
[1750094542055,4.73895181,157.98,157.94,121.35641562]
[1750094542255,14.33143064,157.99,157.94,121.35641562]
[1750094542256,4.73895181,157.97,157.94,121.35641562]
[1750094542466,14.33143064,157.99,157.94,121.35641562]
[1750094542668,4.7389185,157.98,157.94,121.35641562]
[1750094542851,4.7389185,157.97,157.94,121.35641562]
[1750094543051,14.33143064,157.99,157.94,121.35641562]
[1750094543268,4.7389433,157.98,157.94,121.35641562]
[1750094543469,4.7389433,157.97,157.94,121.35641562]
[1750094543778,14.33143064,157.99,157.94,121.35641562]
[1750094544085,0.14216157,157.97,157.94,88.8]
[1750094544374,4.73888496,157.96,157.94,88.8]
[1750094544577,7.57530176,157.96,157.94,88.8]
[1750094544953,0.14216157,157.98,157.94,88.8]
[1750094545155,12.31432195,157.97,157.94,88.8]
[1750094545454,4.73902019,157.96,157.94,88.8]
[1750094545665,4.73902019,157.97,157.94,88.8]
[1750094545974,4.88040537,157.97,157.94,95.13147471]
[1750094546590,4.88040537,157.97,157.94,88.8]
[1750094548000,0.14216157,157.97,157.94,6.33136506]
[1750094548297,4.88030485,157.97,157.93,13.90704033]
[1750094548684,4.73814328,157.97,157.94,26.22495062]
[1750094548890,11.06819091,157.98,157.94,26.22495062]
[1750094549104,4.73814328,157.97,157.94,26.22495062]
[1750094549703,0.14216157,157.98,157.94,32.55638247]
[1750094549881,4.73842714,157.97,157.94,32.55638247]
[1750094550082,0.14216157,157.98,157.94,32.55638247]
[1750094550298,4.73843568,157.97,157.94,32.55638247]
[1750094550481,4.74042045,157.96,157.94,32.55638247]
[1750094550677,4.74042045,157.95,157.94,32.55638247]
[1750094551909,4.74120498,157.95,157.94,24.98108071]
[1750094552777,4.74120498,157.95,157.94,32.55638247]
[1750094553178,4.74120498,157.95,157.94,88.8]
[1750094554676,4.74156399,157.95,157.94,88.8]
[1750094556035,13.90579706,157.97,157.94,88.8]
[1750094556218,4.74139972,157.96,157.94,88.8]
[1750094556528,4.74139972,157.95,157.94,88.8]
[1750094557450,17.20862632,157.97,157.94,88.8]
[1750094557624,4.74135008,157.96,157.94,88.8]
[1750094557924,4.74135008,157.95,157.94,88.8]
[1750094560447,4.74163389,157.95,157.94,88.8]
[1750094561557,4.74162535,157.95,157.94,88.8]
[1750094563560,4.74625661,157.95,157.94,88.8]
[1750094563767,4.74625661,157.95,157.94,113.78116715]
[1750094563930,4.74625661,157.95,157.94,121.35646891]
[1750094564252,4.74625661,157.95,157.94,113.78116715]
[1750094564469,4.74625661,157.95,157.94,121.35646891]
[1750094564970,4.74625661,157.95,157.94,107.44964886]
[1750094568162,9.48968454,157.95,157.94,88.8]
[1750094569654,4.74625661,157.95,157.94,88.8]
[1750094569850,9.48968641,157.95,157.94,88.8]
[1750094570055,17.20854547,157.97,157.94,88.8]
[1750094570256,4.74336247,157.96,157.94,88.8]
[1750094570447,4.74336247,157.95,157.94,88.8]
[1750094570860,9.48978945,157.95,157.94,88.8]
[1750094571167,4.74642698,157.95,157.94,88.8]
[1750094571951,4.74642698,157.95,157.94,107.44964886]
[1750094572150,4.74642698,157.95,157.94,121.35646891]
[1750094573064,4.7431023,157.96,157.95,18.64964886]
[1750094573268,9.48923501,157.96,157.95,18.64964886]
[1750094573453,9.48923362,157.96,157.95,18.64964886]
[1750094574854,9.48923362,157.96,157.94,95.13151829]
[1750094575056,4.74613132,157.95,157.94,113.78116715]
[1750094575371,4.74614213,157.95,157.94,113.78116715]
[1750094575864,4.74614213,157.95,157.94,107.44964886]
[1750094576571,12.32144389,157.95,157.93,88.8]
[1750094576752,4.74614213,157.94,157.93,113.78156806]
[1750094578673,4.74632806,157.94,157.93,113.78156806]
[1750094578980,4.74658642,157.94,157.93,107.44964886]
[1750094579753,4.74658642,157.94,157.93,18.64964886]
[1750094580156,4.74658642,157.94,157.93,32.55686982]
[1750094581250,4.74335887,157.98,157.94,18.64964886]
[1750094581480,9.49050852,157.97,157.94,26.22495062]
[1750094581780,4.7450768,157.96,157.94,26.22495062]
[1750094582085,4.74411146,157.98,157.95,7.57530176]
[1750094582259,4.74492846,157.97,157.95,7.57530176]
[1750094582451,4.74479954,157.96,157.95,7.57530176]
[1750094582853,4.74479954,157.96,157.94,32.55619278]
[1750094583053,4.74479954,157.95,157.94,32.55619278]
[1750094584353,17.06459869,157.95,157.92,88.8]
[1750094584665,17.06507986,157.94,157.89,32.55847395]
[1750094584965,4.74528071,157.93,157.91,18.64964886]
[1750094585169,4.74528071,157.92,157.91,18.64964886]
[1750094586189,9.4906804,157.92,157.91,18.64964886]
[1750094587078,9.4906804,157.92,157.91,24.98237003]
[1750094587295,9.48934888,157.92,157.91,24.98237003]
[1750094587489,4.74394965,157.92,157.91,32.55767179]
[1750094588487,4.74285643,157.96,157.91,32.55767179]
[1750094588665,9.4857059,157.95,157.94,7.57530176]
[1750094589299,4.74285643,157.95,157.94,7.57530176]
[1750094589470,9.48571923,157.95,157.94,7.57530176]
[1750094590071,4.7428628,157.95,157.94,7.57530176]
[1750094590496,4.7428628,157.95,157.94,13.90682005]
[1750094592078,4.7428628,157.95,157.94,32.55646891]
[1750094592278,3.30222496,157.99,157.95,18.64964886]
[1750094592491,14.22498258,157.98,157.95,121.35593226]
[1750094592667,9.48407896,157.97,157.96,26.22495062]
[1750094593288,4.74181873,157.97,157.96,26.22495062]
[1750094593493,5.66,158.01,157.97,18.64964886]
[1750094593709,4.73984543,158.0,157.98,7.57530176]
[1750094593885,4.73984543,157.99,157.98,26.22495062]
[1750094594516,4.73984543,157.99,157.98,32.55486579]
[1750094595197,4.73984543,157.99,157.98,121.35486579]
[1750094595403,4.73969967,157.99,157.98,121.35486579]
[1750094595608,4.73969967,157.99,157.98,113.77956403]
[1750094595999,10.39618165,158.01,157.98,113.77956403]
[1750094596214,4.73969967,158.0,157.98,113.77956403]
[1750094596504,4.73969967,157.99,157.98,113.77956403]
[1750094597111,4.73969967,157.99,157.98,121.35486579]
[1750094598619,4.73969967,157.99,157.98,107.44964886]
[1750094599118,4.73635186,157.99,157.98,107.44964886]
[1750094600316,4.73635186,157.99,157.98,88.8]
[1750094600490,4.87851343,157.99,157.95,26.22495062]
[1750094600695,4.73635186,157.98,157.96,7.57530176]
[1750094601008,4.73635186,157.97,157.96,7.57530176]
[1750094601206,4.73475423,157.97,157.96,26.22495062]
[1750094601908,4.73618165,158.01,157.97,18.64964886]
[1750094602112,4.73618165,158.01,157.98,7.57530176]
[1750094602113,4.73439241,158.0,157.98,7.57530176]
[1750094602320,4.73439241,157.99,157.98,32.55486579]
[1750094603126,4.73439241,157.99,157.98,24.97956403]
[1750094604705,4.73320753,157.99,157.98,18.64964886]
[1750094605527,4.73320753,157.99,157.95,18.64964886]
[1750094605726,4.73320753,157.98,157.95,26.22495062]
[1750094606031,12.31148341,158.0,157.95,26.22495062]
[1750094606198,4.73271843,157.99,157.95,26.22495062]
[1750094606406,4.73271843,157.98,157.95,121.35592126]
[1750094606621,13.90445473,158.0,157.95,121.35592126]
[1750094606834,12.30802119,157.99,157.95,88.8]
[1750094607125,13.86932119,157.98,157.95,88.8]
[1750094607302,4.73271943,157.97,157.95,88.8]
[1750094607503,1.5613,157.98,157.95,88.8]
[1750094607707,4.73301283,157.97,157.95,88.8]
[1750094607922,4.73306317,157.96,157.95,107.44964886]
[1750094609738,9.13660176,157.98,157.95,107.44964886]
[1750094609953,4.73295715,157.97,157.95,107.44964886]
[1750094610117,1.5613,157.98,157.95,107.44964886]
[1750094610316,4.73295576,157.97,157.95,113.78074155]
[1750094610642,4.73305556,157.96,157.95,113.78074155]
[1750094610849,4.73325448,157.96,157.95,107.44964886]
[1750094611777,4.73325448,157.96,157.95,113.7807663]
[1750094612045,1.5613,157.98,157.95,113.7807663]
[1750094612219,4.73351438,157.97,157.95,113.7807663]
[1750094612421,1.5613,157.98,157.95,113.7807663]
[1750094612646,4.73371193,157.97,157.95,113.7807663]
[1750094612841,4.73371193,157.96,157.95,113.7807663]
[1750094613143,4.73338164,157.96,157.95,113.7807663]
[1750094613344,1.5613,157.98,157.95,113.7807663]
[1750094613545,4.73350554,157.97,157.95,113.7807663]
[1750094613719,1.5613,157.98,157.95,113.7807663]
[1750094613914,4.73343051,157.97,157.95,107.44964886]
[1750094614222,4.73338095,157.96,157.95,107.44964886]
[1750094615827,18.63939934,157.96,157.95,88.8]
[1750094616030,23.8020657,157.96,157.95,88.8]
[1750094616262,19.06588405,157.96,157.95,88.8]
[1750094616437,16.22676394,157.96,157.95,88.8]
[1750094616635,19.06588405,157.96,157.95,88.8]
[1750094616953,23.8020657,157.96,157.95,88.8]
[1750094617156,19.06588405,157.96,157.95,88.8]
[1750094617450,23.8020657,157.96,157.95,88.8]
[1750094617655,19.06588405,157.96,157.95,88.8]
[1750094617838,23.8020657,157.96,157.95,88.8]
[1750094618034,19.06588405,157.96,157.95,88.8]
[1750094618241,23.8020657,157.96,157.95,88.8]
[1750094618443,19.06588405,157.96,157.95,88.8]
[1750094618642,23.8020657,157.96,157.95,88.8]
[1750094618844,19.06588405,157.96,157.95,88.8]
[1750094619044,23.8020657,157.96,157.95,88.8]
[1750094619348,23.8020657,157.96,157.87,18.64964886]
[1750094619349,0.42648471,157.95,157.87,18.64964886]
[1750094619647,7.57530176,157.91,157.87,18.64964886]
[1750094620552,15.79166888,157.9,157.87,18.64964886]
[1750094620752,6.33318303,157.9,157.87,18.64964886]
[1750094621052,13.90818158,157.91,157.87,18.64964886]
[1750094621244,4.72902392,157.9,157.87,18.64964886]
[1750094621442,13.90818158,157.91,157.87,18.64964886]
[1750094621643,4.72911967,157.9,157.87,26.22495062]
[1750094621831,13.90818158,157.91,157.87,18.64964886]
[1750094622033,4.72904534,157.9,157.87,26.22495062]
[1750094622242,13.90818158,157.91,157.87,26.22495062]
[1750094622440,4.72899984,157.9,157.87,26.22495062]
[1750094622753,13.90818158,157.91,157.87,26.22495062]
[1750094622956,13.90818158,157.91,157.87,18.64964886]
[1750094622957,11.06227384,157.9,157.87,18.64964886]
[1750094623256,6.33315086,157.9,157.87,18.64964886]
[1750094623554,13.90818084,157.91,157.87,18.64964886]
[1750094624152,13.90818084,157.91,157.87,107.44964886]
[1750094624854,13.90818084,157.91,157.87,115.02495062]
[1750094625749,13.90818084,157.91,157.87,107.44964886]
[1750094626442,4.72397772,157.9,157.87,107.44964886]
[1750094626770,13.90818084,157.91,157.87,107.44964886]
[1750094627153,4.72397772,157.9,157.87,107.44964886]
[1750094627355,13.90818084,157.91,157.87,107.44964886]
[1750094627873,18.63221193,157.91,157.87,107.44964886]
[1750094628041,6.33287908,157.91,157.87,121.35926297]
[1750094628247,13.90818084,157.91,157.87,121.35926297]
[1750094629662,13.90818084,157.91,157.87,113.78396121]
[1750094630340,7.57530176,157.92,157.87,121.35926297]
[1750094631073,4.72241749,157.91,157.87,121.35926297]
[1750094631274,7.57530176,157.91,157.87,121.35926297]
[1750094631483,6.47367986,157.94,157.87,121.35926297]
[1750094631673,7.57530176,157.92,157.87,121.35926297]
[1750094632479,12.29641272,157.92,157.87,121.35926297]
[1750094632980,4.72111096,157.93,157.9,18.64964886]
[1750094633181,9.4417587,157.96,157.93,18.64964886]
[1750094633487,4.72064774,157.95,157.93,26.22495062]
[1750094633684,9.13660176,157.98,157.93,115.02495062]
[1750094633685,4.72111096,157.97,157.93,115.02495062]
[1750094633875,4.72005364,157.96,157.93,115.02495062]
[1750094634074,4.71999061,157.97,157.93,121.35651909]
[1750094634279,4.71996338,157.96,157.93,121.35651909]
[1750094634484,4.71995548,157.97,157.93,121.35651909]
[1750094634701,4.71995548,157.96,157.93,121.35651909]
[1750094634887,4.71995548,157.97,157.93,121.35651909]
[1750094635095,4.7186451,157.96,157.93,113.78121733]
[1750094635282,12.29525724,157.97,157.93,113.78121733]
[1750094635482,4.71862999,157.96,157.93,113.78121733]
[1750094635691,12.29393108,157.97,157.93,113.78121733]